bitfinex/quotes_ETHUSD_20240710
["timestamp","ask_amount","ask_price","bid_price","bid_amount"]
[1720620256576,3.19954,3125.5,3124.6,3.20039]
[1720620256877,3.19954,3125.5,3124.7,0.320039]
[1720620257169,3.19954,3125.5,3124.4,3.20052]
[1720620257170,3.1996,3125.4,3124.4,3.20052]
[1720620257370,3.19971,3125.3,3124.3,3.0]
[1720620257764,3.19971,3125.3,3124.4,0.55]
[1720620258137,3.822,3126.2,3124.1,0.554711]
[1720620258138,3.20002,3125.0,3124.1,0.554711]
[1720620258341,3.19985,3125.2,3124.3,3.20064]
[1720620258564,3.19985,3125.2,3124.4,0.32646443]
[1720620258768,3.19985,3125.2,3124.2,0.06400426]
[1720620258950,3.19985,3125.2,3124.4,0.06399896]
[1720620259145,3.20015,3124.9,3124.1,3.554711]
[1720620259348,3.19992,3125.1,3124.2,0.06400758]
[1720620259561,3.19992,3125.1,3124.1,3.554711]
[1720620259752,3.19992,3125.1,3124.2,0.9101671]
[1720620260051,3.19992,3125.1,3124.3,0.06400088]
[1720620260252,3.19952,3125.5,3124.5,3.20049]
[1720620260452,3.19952,3125.5,3124.6,0.06399609]
[1720620260673,3.19963,3125.4,3124.6,0.61399609]
[1720620260879,3.19952,3125.5,3124.7,0.38144861]
[1720620261039,3.19952,3125.5,3124.8,0.0639941]
[1720620261535,3.19959,3125.4,3124.8,0.0639941]
[1720620261737,3.19959,3125.4,3124.6,0.55]
[1720620261972,3.19989,3125.1,3124.2,0.95506959]
[1720620262171,3.19989,3125.1,3124.3,0.55]
[1720620262376,3.20002,3125.0,3124.3,0.55]
[1720620262547,3.20002,3125.0,3124.3,1.31610871]
[1720620263055,3.19989,3125.1,3124.3,1.36103404]
[1720620263278,3.19973,3125.3,3124.3,1.36103404]
[1720620263585,3.19981,3125.2,3124.3,1.36103404]
[1720620263743,3.19961,3125.4,3124.3,4.51676871]
[1720620263946,3.19991,3125.1,3124.4,0.54269358]
[1720620264179,3.19991,3125.1,3124.3,1.31610871]
[1720620264381,3.20003,3125.0,3124.3,1.31610871]
[1720620264588,3.20026,3124.8,3124.0,2.346]
[1720620265359,3.20033,3124.7,3124.0,2.346]
[1720620265556,3.20047,3124.6,3124.0,2.346]
[1720620266160,6.40096,3124.6,3124.0,2.346]
[1720620266359,3.19983,3125.2,3123.4,6.93395661]
[1720620266360,3.20092,3124.1,3123.4,6.93395661]
[1720620266559,3.20092,3124.1,3122.8,32.0]
[1720620266560,3.20123,3123.8,3122.8,22.241]
[1720620266895,3.20136,3123.7,3122.9,2.2241]
[1720620267372,6.40279,3123.7,3122.9,2.2241]
[1720620267576,0.50225901,3123.6,3122.9,2.2241]
[1720620267760,3.70371901,3123.6,3122.9,2.2241]
[1720620268577,0.50225901,3123.6,3122.9,2.2241]
[1720620268786,3.70374901,3123.6,3123.0,2.44651]
[1720620269067,0.50225901,3123.6,3123.1,0.55]
[1720620269268,3.2012,3123.9,3123.1,0.55]
[1720620269468,3.20102,3124.0,3123.1,0.55]
[1720620269662,0.50225655,3123.7,3123.2,0.619855]
[1720620269894,0.50225655,3123.7,3123.3,0.55]
[1720620270605,3.20076,3124.3,3123.3,0.59498995]
[1720620270807,6.40197,3124.1,3123.3,0.55]
[1720620271011,3.70332955,3124.0,3123.3,0.55]
[1720620271212,0.50224955,3124.0,3123.3,0.5949882]
[1720620271707,0.50224955,3124.0,3123.4,0.44166632]
[1720620272056,3.70326955,3124.0,3123.4,0.44166632]
[1720620272222,3.70326955,3124.0,3123.2,0.619855]
[1720620272368,3.70326955,3124.0,3122.8,5.60321]
[1720620272369,3.20147,3123.6,3122.8,2.401]
[1720620272573,0.50224955,3124.0,3122.2,5.67797]
[1720620272574,0.08003869,3123.5,3122.2,5.67797]
[1720620272894,3.20176,3123.3,3122.3,0.04504266]
[1720620273348,3.20176,3123.3,3122.3,3.24779266]
[1720620273508,3.20149,3123.6,3122.5,3.2025]
[1720620273803,0.50224955,3124.0,3122.5,3.2025]
[1720620273804,3.20127,3123.8,3122.6,0.04502642]
[1720620274007,3.20134,3123.7,3122.6,3.24741642]
[1720620274183,3.20145,3123.6,3122.6,3.24741642]
[1720620274504,3.20145,3123.6,3122.7,0.55]
[1720620274706,3.20145,3123.6,3122.8,0.42476101]
[1720620274918,6.40275,3123.7,3122.8,0.42476101]
[1720620275226,3.20134,3123.7,3122.8,0.42476101]
[1720620275383,3.20148,3123.6,3122.8,0.42476101]
[1720620275709,3.20153,3123.5,3122.8,0.42476101]
[1720620276017,3.20153,3123.5,3122.9,0.4177111]
[1720620276313,6.40273,3123.7,3122.9,0.4177111]
[1720620276469,3.20144,3123.6,3122.9,0.4177111]
[1720620276675,6.40295,3123.6,3122.8,0.04501937]
[1720620276887,3.20155,3123.5,3122.7,0.55]
[1720620277085,3.20144,3123.6,3122.6,0.55]
[1720620277086,3.20166,3123.4,3122.6,0.55]
[1720620277295,3.20166,3123.4,3122.5,0.55]
[1720620277483,3.20166,3123.4,3122.6,0.46452263]
[1720620277687,3.20166,3123.4,3122.7,0.55]
[1720620278606,3.20156,3123.5,3121.9,10.13703661]
[1720620278817,3.28121493,3123.9,3122.0,3.0]
[1720620278818,3.20225,3122.8,3122.0,3.0]
[1720620279015,3.20225,3122.8,3121.7,3.20329]
[1720620279199,6.40457,3122.8,3121.8,3.20327]
[1720620279413,3.20209,3123.0,3122.2,2.72272]
[1720620279849,3.20186,3123.2,3122.2,5.92558]
[1720620280148,3.20174,3123.3,3122.3,3.2478101]
[1720620280332,3.20162,3123.5,3122.4,3.20265]
[1720620280532,3.20162,3123.5,3122.5,0.6900832]
[1720620280884,3.20137,3123.7,3122.6,3.20244]
[1720620281157,6.40278,3123.7,3122.7,0.04502527]
[1720620281310,6.40279,3123.7,3122.7,0.04502527]
[1720620281510,3.20153,3123.5,3122.7,0.04502527]
[1720620281709,3.20153,3123.5,3122.7,0.4342764]
[1720620282039,3.20153,3123.5,3122.7,0.38925113]
[1720620282350,3.20137,3123.7,3122.8,0.04502924]
[1720620282645,3.20156,3123.5,3122.7,0.38925113]
[1720620283018,6.40317,3123.5,3122.7,0.38925113]
[1720620283227,6.40317,3123.5,3122.6,3.20244]
[1720620285459,3.20168,3123.4,3122.5,0.64504601]
[1720620285749,3.20168,3123.4,3122.6,0.55]
[1720620286521,3.20168,3123.4,3122.5,0.55]
[1720620287659,3.20168,3123.4,3122.5,3.75255]
[1720620289164,3.20151,3123.6,3122.5,3.75255]
[1720620289572,3.20151,3123.6,3122.6,3.20245]
[1720620289746,3.20154,3123.5,3122.7,4.127585]
[1720620290064,3.20154,3123.5,3122.8,0.55]
[1720620290235,3.20134,3123.7,3122.8,3.75223]
[1720620290438,6.40274,3123.7,3122.8,3.75223]
[1720620290683,3.20154,3123.5,3122.8,0.55]
[1720620291521,3.20154,3123.5,3122.6,0.55]
[1720620291722,3.20154,3123.5,3122.7,0.375249]
[1720620291956,3.20154,3123.5,3122.8,0.55]
[1720620292565,3.20164,3123.4,3122.4,3.20266]
[1720620292870,3.20184,3123.2,3122.5,0.55]
[1720620293053,3.20184,3123.2,3122.3,3.55]
[1720620293256,3.20184,3123.2,3122.4,1.267831]
[1720620293459,3.20184,3123.2,3122.5,0.55]
[1720620294653,3.20182,3123.3,3122.5,0.55]
[1720620294974,3.20187,3123.2,3122.5,0.55]
[1720620295348,3.20174,3123.3,3122.5,0.55]
[1720620295570,3.20174,3123.3,3122.6,0.5020451]
[1720620295947,3.20185,3123.2,3122.6,0.5020451]
[1720620296368,3.20185,3123.2,3122.5,0.55]
[1720620297393,3.20169,3123.4,3122.5,0.55]
[1720620297571,0.50224955,3124.0,3122.9,3.0]
[1720620297741,0.50224955,3124.0,3123.4,5.54553]
[1720620298065,0.50224955,3124.0,3123.5,1.14952003]
[1720620298248,0.50224955,3124.0,3123.5,1.104553]
[1720620299794,0.50224955,3124.0,3123.5,4.306073]
[1720620300370,0.50224955,3124.0,3123.6,3.20142]
[1720620301066,0.50224955,3124.0,3123.5,1.104553]
[1720620301902,0.50224955,3124.0,3123.6,0.3448453]
[1720620302120,3.20114,3123.9,3123.0,3.0]
[1720620302420,3.70326955,3124.0,3123.1,3.20191]
[1720620303161,3.70326955,3124.0,3123.0,3.20203]
[1720620303366,0.50224955,3124.0,3123.1,3.20188]
[1720620303604,3.70327955,3124.0,3123.1,3.842271]
[1720620304102,0.50224955,3124.0,3123.2,0.55]
[1720620304417,0.50224955,3124.0,3123.4,3.20163]
[1720620304764,0.50224955,3124.0,3123.6,3.20142]
[1720620305866,0.50224955,3124.0,3123.4,3.20163]
[1720620306086,0.50224955,3124.0,3123.1,3.842331]
[1720620306327,3.20139,3123.7,3122.8,2.4918]
[1720620306513,3.20152,3123.6,3122.6,3.20238]
[1720620306713,3.2016,3123.5,3122.6,3.20238]
[1720620307021,2.3734,3123.6,3122.4,6.06905253]
[1720620307237,3.20191,3123.2,3122.4,2.86643253]
[1720620308203,3.20195,3123.1,3122.4,2.86643253]
[1720620309040,3.20182,3123.3,3122.4,2.86643253]
[1720620309320,3.20138,3123.7,3122.6,3.20237]
[1720620309537,3.20149,3123.6,3122.6,6.40473]
[1720620309688,3.20183,3123.3,3122.5,0.60691625]
[1720620309895,3.20185,3123.2,3122.4,1.59860153]
[1720620310521,3.20196,3123.1,3122.4,1.59860153]
[1720620310927,3.20196,3123.1,3122.2,5.4649]
[1720620311136,3.20196,3123.1,3122.3,0.55]
[1720620311514,3.20209,3123.0,3122.2,2.2621]
[1720620311715,2.3936,3123.2,3121.9,19.84]
[1720620312044,3.20237,3122.7,3121.7,3.20337]
[1720620312243,3.20237,3122.7,3121.8,3.20326]
[1720620312406,3.282435,3122.7,3121.8,3.20326]
[1720620312808,3.20233,3122.8,3121.9,0.320326]
[1720620313056,2.3936,3123.2,3121.9,0.320326]
[1720620313057,3.20236,3122.7,3121.9,0.36540212]
[1720620313670,3.20219,3122.9,3122.0,3.20307]
[1720620313958,3.20197,3123.1,3122.1,0.0450674]
[1720620313959,3.20207,3123.0,3122.1,0.0450674]
[1720620314254,3.20197,3123.1,3122.2,0.32481374]
[1720620314412,3.20183,3123.3,3122.3,0.59505553]
[1720620314617,3.20118,3123.9,3122.4,2.34734906]
[1720620314820,0.50224955,3124.0,3123.0,3.20199]
[1720620315133,0.50224955,3124.0,3123.1,3.24689702]
[1720620315333,0.50224955,3124.0,3123.2,3.75181]
[1720620315522,0.50224955,3124.0,3123.2,0.55]
[1720620315719,0.50224955,3124.0,3123.2,0.925188]
[1720620316018,0.50224955,3124.0,3123.2,4.126978]
[1720620316275,0.50224955,3124.0,3123.2,0.925188]
[1720620316824,0.50224955,3124.0,3122.5,0.28973491]
[1720620316825,0.58228089,3124.0,3122.5,0.28973491]
[1720620317153,3.20169,3123.4,3122.5,0.28973491]
[1720620317554,3.20183,3123.3,3122.5,0.28973491]
[1720620317719,3.20186,3123.2,3122.5,0.28973491]
[1720620318326,3.20183,3123.3,3122.5,0.28973491]
[1720620318625,3.20183,3123.3,3122.4,2.3023]
[1720620318626,3.20182,3123.3,3122.6,0.25920349]
[1720620319477,3.20171,3123.4,3122.6,0.25920349]
[1720620319786,3.20151,3123.6,3122.6,0.25920349]
[1720620319961,3.20133,3123.7,3122.7,3.75227]
[1720620320346,3.20151,3123.6,3122.7,0.55]
[1720620320527,3.20151,3123.6,3122.7,1.27141235]
[1720620321161,3.20133,3123.7,3122.7,1.27141235]
[1720620321162,3.20139,3123.7,3122.7,4.47374235]
[1720620321565,3.20149,3123.6,3122.7,4.47374235]
[1720620321950,6.40279,3123.7,3122.7,4.47374235]
[1720620322239,6.40281,3123.7,3122.7,4.47374235]
[1720620322435,3.20144,3123.6,3122.8,0.47329458]
[1720620322779,3.70326955,3124.0,3122.9,0.04502306]
[1720620322986,0.50224955,3124.0,3123.1,3.20187]
[1720620323282,3.70327955,3124.0,3123.2,3.75184]
[1720620323688,3.70327955,3124.0,3123.2,6.07754]
[1720620323900,3.20118,3123.9,3123.2,3.253657]
[1720620324202,0.50224955,3124.0,3123.2,3.253657]
[1720620324356,0.50224955,3124.0,3123.2,6.455477]
[1720620324899,3.20119,3123.9,3123.2,0.927957]
[1720620325053,3.20119,3123.9,3123.0,6.20198]
[1720620325257,0.50224955,3124.0,3123.1,3.246919]
[1720620325454,0.50224955,3124.0,3123.9,6.40224]
[1720620325782,2.475,3125.7,3124.4,3.2006]
[1720620325955,3.19962,3125.4,3124.5,3.24541343]
[1720620326153,3.19938,3125.6,3124.6,0.36946478]
[1720620326574,0.0849988,3126.0,3124.7,0.55]
[1720620326951,3.19934,3125.7,3124.6,3.52488134]
[1720620327164,3.19955,3125.5,3124.6,0.32454134]
[1720620327380,0.07999891,3125.4,3124.6,0.32454134]
[1720620327693,3.19955,3125.5,3124.6,0.32454134]
[1720620327990,1.0,3125.0,3124.7,0.35250113]
[1720620329073,1.0,3125.0,3124.7,3.55280113]
[1720620329384,1.0,3125.0,3124.8,2.49931213]
[1720620329571,1.0,3125.0,3124.9,3.7501]
[1720620329922,1.0,3125.0,3124.9,6.7501]
[1720620330116,1.0,3125.0,3124.9,8.32581911]
[1720620330669,1.0,3125.0,3124.9,5.12571911]
[1720620330867,1.0,3125.0,3124.9,8.37072037]
[1720620331917,1.0,3125.0,3124.9,8.43850906]
[1720620332441,1.0,3125.0,3124.9,5.1935078]
[1720620332571,1.0,3125.0,3124.9,3.61778869]
[1720620332993,1.0,3125.0,3124.9,6.81788869]
[1720620334613,1.0,3125.0,3124.9,10.01798869]
[1720620336920,1.0,3125.0,3124.9,17.04008869]
[1720620337228,0.3319502,3125.0,3124.9,17.04008869]
[1720620337389,0.005,3126.0,3125.7,6.39839]
[1720620337582,0.005,3126.0,3125.9,3.19907]
[1720620337919,0.005,3126.0,3125.9,7.05535072]
[1720620338386,0.005,3126.0,3125.9,10.20958501]
[1720620338917,0.005,3126.0,3125.9,7.01051501]
[1720620339119,0.005,3126.0,3125.9,8.32363651]
[1720620340093,0.005,3126.0,3125.9,1.37549651]
[1720620340291,0.005,3126.0,3125.9,0.06237501]
[1720620340487,0.005,3126.0,3125.4,3.19955]
[1720620340744,0.005,3126.0,3125.5,0.05849427]
[1720620340941,3.19928,3125.7,3125.5,0.05849427]
[1720620341100,2.4917,3125.9,3124.8,6.93395661]
[1720620341101,3.19956,3125.5,3124.8,6.93395661]
[1720620341313,3.19961,3125.4,3124.9,0.7873227]
[1720620341494,6.39928,3125.4,3124.9,0.05867693]
[1720620341698,6.39928,3125.4,3124.5,4.79911153]
[1720620341699,6.39929,3125.4,3124.5,4.79911153]
[1720620341918,3.19971,3125.3,3124.8,0.05870738]
[1720620342236,3.19971,3125.3,3124.5,1.59860153]
[1720620342237,0.07999908,3125.3,3124.5,1.59860153]
[1720620342531,2.99366099,3125.9,3124.0,10.13490661]
[1720620342532,3.20013,3124.9,3124.0,10.13490661]
[1720620342732,3.20013,3124.9,3124.6,0.05876828]
[1720620342939,3.20013,3124.9,3124.0,3.20095]
[1720620343227,3.19985,3125.2,3124.7,0.05873783]
[1720620343389,3.19985,3125.2,3123.8,0.04494491]
[1720620343390,3.2001,3124.9,3123.8,3.20116]
[1720620343595,3.2001,3124.9,3124.8,0.05870738]
[1720620343796,3.2001,3124.9,3124.0,3.20095]
[1720620344138,3.19989,3125.1,3124.2,3.20081]
[1720620344340,6.39987,3125.1,3124.2,3.20081]
[1720620344507,6.39987,3125.1,3124.3,0.05697317]
[1720620344833,3.2,3125.0,3124.3,0.05697317]
[1720620345007,3.19989,3125.1,3124.3,0.05697317]
[1720620345207,3.19989,3125.1,3124.4,0.33027177]
[1720620345589,6.39986,3125.1,3124.5,0.05691225]
[1720620345794,3.20001,3125.0,3124.5,0.05691225]
[1720620346536,3.2001,3124.9,3124.1,0.320095]
[1720620346705,3.2001,3124.9,3124.6,0.05688179]
[1720620346903,3.19989,3125.1,3124.2,0.55]
[1720620347096,3.19989,3125.1,3124.3,0.46407367]
[1720620347298,3.19954,3125.5,3124.4,0.04493778]
[1720620347508,3.19965,3125.4,3124.5,0.05691225]
[1720620347708,3.19938,3125.7,3124.5,2.52023336]
[1720620347937,2.99366099,3125.9,3124.6,0.55]
[1720620347938,6.39886,3125.6,3124.6,0.55]
[1720620348142,2.99366099,3125.9,3124.5,2.47531225]
[1720620348143,3.19971,3125.3,3124.7,0.30253122]
[1720620348345,3.19971,3125.3,3124.7,0.35938256]
[1720620348649,3.19971,3125.3,3124.7,0.05685134]
[1720620349006,3.19971,3125.3,3124.4,0.55]
[1720620349207,3.19996,3125.1,3124.8,0.05682089]
[1720620349445,3.20006,3125.0,3124.1,2.600295]
[1720620349656,3.20019,3124.9,3124.2,0.95342516]
[1720620349816,3.19993,3125.1,3124.2,0.05714949]
[1720620350015,3.2001,3124.9,3124.2,0.05714949]
[1720620350240,3.19993,3125.1,3124.1,3.24583532]
[1720620350446,3.20013,3124.9,3124.3,0.05529577]
[1720620350743,3.19993,3125.1,3124.4,0.05526531]
[1720620350946,3.19951,3125.5,3124.5,3.20049]
[1720620351160,3.19951,3125.5,3124.6,0.560369]
[1720620351320,3.19967,3125.4,3124.6,0.61568114]
[1720620351527,3.19972,3125.3,3124.6,0.61568114]
[1720620351867,3.19989,3125.1,3124.6,0.61568114]
[1720620352161,3.19989,3125.1,3124.6,0.05531214]
[1720620352619,3.19972,3125.3,3124.3,3.2007]
[1720620352827,3.19979,3125.2,3124.7,0.05527046]
[1720620353026,3.19979,3125.2,3124.3,3.2007]
[1720620353345,3.19972,3125.3,3124.3,3.24563122]
[1720620353560,3.19972,3125.3,3124.4,0.67992495]
[1720620353765,3.19952,3125.5,3124.5,3.75049]
[1720620353908,3.19969,3125.3,3124.5,3.75049]
[1720620354107,3.19969,3125.3,3124.6,0.05530092]
[1720620354549,3.19952,3125.5,3124.6,0.05530092]
[1720620354733,3.19952,3125.5,3124.7,0.38057909]
[1720620354942,3.19933,3125.7,3124.7,0.38057909]
[1720620355179,3.19933,3125.7,3124.8,6.24512001]
[1720620355399,0.50196099,3125.9,3125.1,3.19984]
[1720620355567,0.50196099,3125.9,3125.3,3.19967]
[1720620355763,0.50196099,3125.9,3125.4,0.37945387]
[1720620355954,0.50196099,3125.9,3125.4,0.42432261]
[1720620356154,0.005,3126.0,3125.4,0.42432261]
[1720620356155,0.005,3126.0,3125.8,3.19915]
[1720620356461,0.005,3126.0,3125.9,0.60481539]
[1720620357880,0.005,3126.0,3125.9,9.36115539]
[1720620358084,0.005,3126.0,3125.9,13.59727093]
[1720620360599,0.005,3126.0,3125.9,4.84093093]
[1720620360755,0.005,3126.0,3125.9,1.84093093]
[1720620360963,0.005,3126.0,3125.9,0.60481539]
[1720620361280,0.005,3126.0,3125.9,0.05481539]
[1720620361454,0.005,3126.0,3125.4,6.03452387]
[1720620361650,0.005,3126.0,3125.5,0.05262478]
[1720620361956,3.19915,3125.9,3125.5,0.05262478]
[1720620362156,0.08497327,3126.0,3125.5,0.05262478]
[1720620362157,3.19938,3125.6,3125.5,0.05262478]
[1720620362357,0.07998931,3125.8,3124.8,6.93395661]
[1720620362358,3.19965,3125.4,3124.8,6.93395661]
[1720620362669,3.19976,3125.3,3124.8,6.93395661]
[1720620362869,3.1998,3125.2,3124.8,6.93395661]
[1720620363072,3.1998,3125.2,3124.5,19.84]
[1720620363259,3.1996,3125.4,3124.6,1.984]
[1720620363586,3.19937,3125.7,3124.6,4.382]
[1720620363811,3.19966,3125.4,3124.6,4.382]
[1720620363958,3.19966,3125.4,3124.5,19.84]
[1720620363959,3.1997,3125.3,3124.5,19.84]
[1720620364159,3.19995,3125.1,3124.5,19.84]
[1720620364461,3.2,3125.0,3124.5,19.84]
[1720620365058,3.19958,3125.5,3124.6,2.398]
[1720620365561,3.19966,3125.4,3124.6,2.398]
[1720620365784,3.19969,3125.3,3124.7,2.2238]
[1720620366161,3.1998,3125.2,3124.7,2.2238]
[1720620366359,3.19991,3125.1,3124.5,19.84]
[1720620366564,3.20002,3125.0,3124.5,19.84]
[1720620367003,3.19985,3125.2,3124.5,19.84]
[1720620367181,3.19974,3125.3,3124.5,19.84]
[1720620367385,3.19974,3125.3,3124.6,2.304061]
[1720620367973,3.19974,3125.3,3124.7,0.04984954]
[1720620368311,3.19981,3125.2,3124.7,0.04984954]
[1720620368482,3.19967,3125.4,3124.7,0.04984954]
[1720620368665,3.19974,3125.3,3124.7,0.04984954]
[1720620368869,3.19974,3125.3,3124.7,2.26924059]
[1720620369105,3.19974,3125.3,3124.7,0.04984954]
[1720620369467,3.19929,3125.7,3124.8,0.55]
[1720620369671,0.005,3126.0,3125.0,3.19998]
[1720620369895,0.005,3126.0,3125.4,3.19951]
[1720620370104,0.005,3126.0,3125.5,3.56427954]
[1720620370310,0.005,3126.0,3125.7,5.51654]
[1720620370481,0.005,3126.0,3125.8,0.59483652]
[1720620370689,0.005,3126.0,3125.8,3.84345509]
[1720620371189,0.005,3126.0,3125.8,0.64429509]
[1720620371391,0.005,3126.0,3125.8,0.04945857]
[1720620371594,0.005,3126.0,3124.8,6.93395661]
[1720620371816,3.19946,3125.6,3124.7,22.1001]
[1720620372022,3.19946,3125.6,3124.7,25.30034]
[1720620372324,0.005,3126.0,3124.4,6.93395661]
[1720620372325,3.19996,3125.1,3124.4,6.93395661]
[1720620372624,3.19996,3125.1,3124.4,0.69339566]
[1720620372795,3.20001,3125.0,3124.1,2.2879]
[1720620373863,3.20001,3125.0,3124.1,5.48875]
[1720620374040,3.20001,3125.0,3124.2,3.0]
[1720620374396,3.1996,3125.4,3124.4,3.20054]
[1720620374628,3.19934,3125.7,3124.6,3.20039]
[1720620374791,3.19934,3125.7,3124.7,0.5948959]
[1720620374792,3.19932,3125.7,3124.7,0.5948959]
[1720620375146,0.005,3126.0,3124.5,4.07500745]
[1720620375147,3.19962,3125.4,3124.6,3.0]
[1720620375428,3.19962,3125.4,3124.7,0.55]
[1720620376619,3.1995,3125.5,3124.7,0.55]
[1720620376824,3.1995,3125.5,3124.8,0.04490931]
[1720620377022,3.19932,3125.7,3124.8,0.72444024]
[1720620377208,3.204,3126.0,3124.9,5.60427]
[1720620377409,3.204,3126.0,3125.1,3.19987]
[1720620377611,3.19908,3125.9,3125.1,3.19987]
[1720620377817,3.19908,3125.9,3125.2,0.55]
[1720620378013,3.19908,3125.9,3125.3,0.37947492]
[1720620378865,0.005,3126.0,3125.3,0.37947492]
[1720620378999,0.005,3126.0,3125.3,0.4243461]
[1720620379197,0.005,3126.0,3125.3,0.37947492]
[1720620379198,3.19913,3125.9,3125.3,0.37947492]
[1720620379403,3.19936,3125.7,3124.9,2.4042]
[1720620379735,3.19936,3125.7,3125.0,0.55]
[1720620380454,0.005,3126.0,3125.1,3.24470981]
[1720620380626,0.005,3126.0,3125.2,0.55]
[1720620380822,0.005,3126.0,3125.3,0.04487192]
[1720620381162,3.204,3126.0,3125.4,0.37946519]
[1720620381466,0.005,3126.0,3125.4,0.04487083]
[1720620381753,0.005,3126.0,3125.5,0.55]
[1720620381950,0.005,3126.0,3125.6,3.2441617]
[1720620382249,0.005,3126.0,3125.7,3.7492]
[1720620382453,0.005,3126.0,3125.7,3.79403712]
[1720620382755,0.005,3126.0,3125.8,0.37940371]
[1720620382968,0.005,3126.0,3125.9,0.59336906]
[1720620384939,0.005,3126.0,3125.9,0.04336906]
[1720620385474,0.005,3126.0,3125.3,2.2687]
[1720620385678,0.005,3126.0,3125.9,0.04336906]
[1720620385859,0.005,3126.0,3125.3,5.2687]
[1720620385860,0.005,3126.0,3125.3,2.31355999]
[1720620386064,0.005,3126.0,3125.9,0.04196145]
[1720620386404,0.005,3126.0,3125.4,0.231356]
[1720620386405,0.005,3126.0,3125.8,3.19916]
[1720620386579,0.005,3126.0,3125.9,5.59956618]
[1720620386785,0.005,3126.0,3125.9,6.14956618]
[1720620387763,0.005,3126.0,3125.9,6.10474488]
[1720620387961,0.005,3126.0,3125.9,13.27902776]
[1720620389036,0.005,3126.0,3125.9,6.83606637]
[1720620390393,0.005,3126.0,3125.9,10.03513637]
[1720620390875,0.005,3126.0,3125.9,13.23420637]
[1720620392707,0.005,3126.0,3125.9,6.83606637]
[1720620393208,0.005,3126.0,3125.9,0.97236637]
[1720620393367,0.005,3126.0,3125.9,0.04197488]
[1720620393565,0.005,3126.0,3125.4,0.231356]
[1720620393769,0.005,3126.0,3125.5,0.04052235]
[1720620393967,0.005,3126.0,3125.5,3.2848155]
[1720620394209,0.005,3126.0,3125.7,6.39854]
[1720620394406,0.005,3126.0,3125.9,3.19907]
[1720620394708,0.005,3126.0,3125.8,3.839024]
[1720620394709,0.005,3126.0,3125.8,0.68033651]
[1720620394863,0.005,3126.0,3125.9,0.04045208]
[1720620396215,3.20398,3126.0,3125.9,0.04048789]
[1720620396369,3.20398,3126.0,3125.1,3.1998]
[1720620396597,3.20398,3126.0,3125.4,0.04064006]
[1720620396902,6.40304,3126.0,3125.4,0.04064006]
[1720620397107,3.20398,3126.0,3125.4,0.04064006]
[1720620397291,3.20398,3126.0,3125.1,3.19983]
[1720620397487,6.40303,3126.0,3125.5,0.04060962]
[1720620397691,3.19929,3125.7,3125.0,19.84]
[1720620397894,3.27927603,3125.7,3125.1,2.67739566]
[1720620398129,3.19929,3125.7,3125.1,2.67739566]
[1720620398297,3.19929,3125.7,3125.2,0.04070094]
[1720620399440,3.27925604,3125.8,3125.2,0.04070094]
[1720620399441,3.19969,3125.3,3125.2,0.04070094]
[1720620399597,3.1996,3125.4,3125.2,0.04070094]
[1720620399790,3.1996,3125.4,3124.5,0.0449155]
[1720620399989,3.19932,3125.7,3124.7,3.2003]
[1720620400248,3.19932,3125.7,3124.8,0.08585287]
[1720620400439,6.3987,3125.7,3124.8,0.08585287]
[1720620400590,3.19917,3125.9,3124.8,3.24111031]
[1720620400929,3.20405,3126.0,3124.8,0.04095031]
[1720620400930,3.19946,3125.6,3124.8,0.04095031]
[1720620401143,3.19946,3125.6,3124.9,0.55]
[1720620401310,3.19961,3125.4,3124.8,0.61501834]
[1720620401529,3.19989,3125.1,3124.9,0.04091987]
[1720620401851,3.27914282,3125.9,3124.1,1.66764154]
[1720620401852,3.28000657,3125.0,3124.1,1.66764154]
[1720620402047,3.20033,3124.7,3124.1,1.66764154]
[1720620402209,3.20033,3124.7,3124.2,0.03854281]
[1720620404044,3.20019,3124.9,3124.2,0.03854281]
[1720620404242,3.19985,3125.2,3124.3,3.37131844]
[1720620404566,2.2977,3125.6,3124.3,3.37131844]
[1720620404567,3.19991,3125.1,3124.4,0.58767788]
[1720620404929,3.20026,3124.8,3124.4,0.03767788]
[1720620405447,3.20031,3124.7,3124.4,0.03767788]
[1720620405767,3.20051,3124.5,3124.1,1.66764154]
[1720620406137,2.2977,3125.6,3124.2,0.08286921]
[1720620406355,5.49713,3125.6,3124.2,3.28361396]
[1720620406522,5.49713,3125.6,3124.5,3.20049]
[1720620406523,3.19954,3125.5,3124.5,3.20049]
[1720620406721,5.5235,3126.0,3124.6,0.03780732]
[1720620406722,3.19959,3125.4,3124.6,0.03780732]
[1720620406922,3.19974,3125.3,3124.6,0.03780732]
[1720620407154,3.19981,3125.2,3124.7,0.32382973]
[1720620407458,2.3245,3126.0,3124.8,0.03769489]
[1720620407459,3.27932884,3125.7,3124.8,0.03769489]
[1720620407832,2.3245,3126.0,3124.1,3.7125254]
[1720620407833,3.19991,3125.1,3124.1,3.7125254]
[1720620408026,3.19991,3125.1,3124.2,3.55]
[1720620408220,3.19991,3125.1,3124.2,6.78863539]
[1720620408658,3.19983,3125.2,3124.3,3.24563709]
[1720620408860,3.19963,3125.4,3124.6,5.49619]
[1720620409058,3.19941,3125.6,3124.7,0.59490923]
[1720620409239,3.19961,3125.4,3124.7,0.5876604]
[1720620409625,3.19991,3125.1,3124.7,0.0376604]
[1720620409967,3.20008,3125.0,3124.7,0.0376604]
[1720620410258,3.20019,3124.9,3124.2,3.0]
[1720620410471,3.822,3125.7,3124.8,0.03762547]
[1720620410472,3.19995,3125.1,3124.8,0.03762547]
[1720620410626,3.19995,3125.1,3124.3,1.17120199]
[1720620411174,3.19975,3125.3,3124.4,0.03774729]
[1720620411770,3.20001,3125.0,3124.4,0.03774729]
[1720620412334,3.19946,3125.6,3124.4,0.03774729]